Cogmind - Beta 13 @@@ ROGUE MODE // 2024.05.03 @ 01:41:04 Player: sercli123 Result: Destroyed by P-60 Hacker with Shock Rifle Performance ------------- Evolutions (3) 1500 Regions Visited (6) 1200 Robots Destroyed (130) 650 Value Destroyed (4182) 4182 Prototype IDs (6) 120 Alien Tech Used (0) 0 Bonus (199) 199 TOTAL SCORE: 7851 Bonus ------- High Alert Combat Kills 239 Friendly Fire -40 Cogmind --------- Core Integrity 0/700 Matter 143/300 Energy 461/560 System Corruption 22% Temperature Cool (14) Movement Treading (240) Ox1 Location -7/Factory Parts ------- > --- POWER (1) -------- Light Nuclear Core > --- PROPULSION (2) --- Light Treads Light Treads > --- UTILITY (7) ------ Improved Heat Sink Large Storage Unit Compact Battery Compact Battery Hardened Medium Armor Plating Improved Medium Armor Plating Improved Shield Generator > --- WEAPON (3) ------- Light EM Pulse Cannon Plasma Cannon Gauss Rifle > --- INVENTORY (15) --- Gravmag System Gravmag System High-capacity Matter Pod (0) Advanced Terrain Scan Processor Weapon Cycler Improved Light Armor Plating Improved Medium Armor Plating Improved Medium Armor Plating Gauss Rifle Gauss Cannon Peak State ------------ > --- POWER ------------ Improved Deuterium Engine > --- PROPULSION ------- Armored Treads Advanced Treads > --- UTILITY ---------- Improved Cooling System Large Storage Unit Core Analyzer Improved Kinecellerator Hardened Medium Armor Plating Hardened Medium Armor Plating Hardened Medium Armor Plating > --- WEAPON ----------- Advanced Assault Cannon Advanced Assault Cannon Advanced Assault Cannon > --- INVENTORY -------- Armored Treads Armored Treads Cooling System High-capacity Matter Pod Trap Scanner ECM Suite Hardened Light Armor Plating Hardened Medium Armor Plating Hardened Medium Armor Plating Hardened Medium Armor Plating Hardlight Generator Recalibrator Advanced Assault Cannon Advanced Assault Cannon Remote Datajack [Rating: 50] Favorites ----------- Power Deuterium Engine Engine Deuterium Engine Power Core Light Nuclear Core Propulsion Armored Treads Treads Armored Treads Leg Aluminum Leg Hover Unit Gravmag System Flight Unit VTOL Module Utility Hardened Medium Armor Plating Device Improved Heat Sink Storage Large Storage Unit Processor Core Analyzer Hackware Hacking Suite Protection Hardened Medium Armor Plating Weapon Advanced Assault Cannon Energy Gun Pulse Rifle Energy Cannon Heavy Particle Cannon Ballistic Gun Gauss Rifle Ballistic Cannon Advanced Assault Cannon Launcher Grenade Launcher Special Weapon Remote Datajack Impact Weapon Heavy Mace Build | -11 -10 -9 -8 -7 -7 -7 ------- Run | Yrd Mat Mat Mat Fac Was Fac Slots Evolved 6 | . . 2 2 2 . . Power . | . . . . . . . Propulsion . | . . . . . . . Utility 5 | . . 2 1 2 . . Weapon 1 | . . . 1 . . . Parts Attached 131 | 5 10 16 35 16 12 37 Power 11 | 1 . 2 4 1 1 2 Engine 9 | 1 . 2 4 1 1 . Core 2 | . . . . . . 2 Reactor . | . . . . . . . Propulsion 24 | 2 3 5 4 1 2 7 Treads 14 | . . 5 4 1 2 2 Leg 6 | 2 3 . . . . 1 Wheel . | . . . . . . . Hover 2 | . . . . . . 2 Flight 2 | . . . . . . 2 Utility 53 | . 4 3 14 11 4 17 Device 16 | . 2 . 3 4 1 6 Storage 8 | . 1 1 . . . 6 Processor 1 | . . . . 1 . . Hackware 2 | . . . 2 . . . Protection 26 | . 1 2 9 6 3 5 Artifact . | . . . . . . . Weapon 43 | 2 3 6 13 3 5 11 Energy Gun 5 | . . . 4 . . 1 Energy Cannon 7 | . . . 2 . . 5 Ballistic Gun 10 | 2 . 1 4 . . 3 Ballistic Cannon 17 | . 3 4 1 3 4 2 Launcher 1 | . . . 1 . . . Special Weapon 1 | . . . . . 1 . Impact Weapon 2 | . . 1 1 . . . Slashing Weapon . | . . . . . . . Piercing Weapon . | . . . . . . . Special Melee Weapon . | . . . . . . . Unidentified Prototypes 3 | . . . 2 . . 1 Parts Lost 18 | . . 1 3 1 11 2 Power 2 | . . . 1 . 1 . Propulsion 3 | . . . . . 3 . Utility 7 | . . 1 1 1 3 1 Weapon 6 | . . . 1 . 4 1 Highest Loss Streak 11 | . . 1 2 1 11 1 To Critical Strikes 1 | . . . . 1 . . Average Slot Usage (%) 88 | . 98 79 99 99 66 75 Engine 6 | . 14 11 9 7 4 . Core 1 | . . . . . . 4 Treads 12 | . . 22 18 15 10 8 Leg 2 | . 28 . . . . 1 Device 10 | . 5 . 10 14 10 11 Storage 10 | . 11 11 9 7 4 16 Processor 1 | . . . . 5 5 . Hackware 1 | . . . 2 3 . . Protection 16 | . 10 13 22 20 14 11 Energy Gun 2 | . . . 4 2 . 3 Energy Cannon 3 | . . . 7 1 . 5 Ballistic Gun 5 | . 5 7 10 1 . 6 Ballistic Cannon 9 | . 22 14 2 16 14 1 Naked Turns 61 | . . . . . 61 . Heaviest Build 79 | 6 32 49 67 75 79 62 Greatest Support 43 | 20 20 43 40 42 42 40 Greatest Overweight (x) 6 | . 1 1 1 1 3 6 Average Overweight (x) 1 | . . . 1 1 . 1 Largest Inventory Capacity 15 | 5 15 15 15 15 15 15 Average Capacity 12 | 5 12 15 15 15 11 9 Most Carried 15 | 3 15 15 15 15 15 14 Average Carried 11 | 1 10 14 14 14 10 7 Final Capacity 15 | 5 15 15 15 15 5 15 Final Carried 15 | 2 15 15 15 15 3 10 Class Distribution -------------------- 39% | Tank 32% | Mutant 20% | Scavenger-Tank 7% | Scavenger-Mutant Dominant Class ---------------- Mutant | -10/Materials Mutant | -9/Materials Tank | -8/Materials Tank | -7/Factory Tank | -7/Waste Scavenger-Tank | -7/Factory Resources | -11 -10 -9 -8 -7 -7 -7 ----------- Run | Yrd Mat Mat Mat Fac Was Fac Matter Collected 4252 | 258 318 340 890 1184 429 833 Remotely . | . . . . . . . Salvage Created 4508 | 47 434 400 1352 1071 401 803 Parts 267 | 2 25 33 82 75 1 49 Haulers Intercepted 7 | . 1 2 2 . . 2 Recyclers Shooed 7 | . . . 3 1 . 3 Parts Field Recycled . | . . . . . . . Retrieved Matter . | . . . . . . . Parts Self-Destructed . | . . . . . . . Prevented . | . . . . . . . Kills | -11 -10 -9 -8 -7 -7 -7 ------- Run | Yrd Mat Mat Mat Fac Was Fac Combat Hostiles Destroyed 89 | 1 9 13 21 28 2 15 Guns 24 | 1 1 6 7 1 . 8 Cannons 62 | . 8 7 12 27 2 6 AOE 2 | . . . 2 . . . Classes Destroyed 15 | 1 3 3 5 2 1 . Worker 7 | . . . 3 1 . 3 Builder 8 | . . . 3 5 . . Tunneler 2 | . . 1 . 1 . . Hauler 7 | . 1 2 2 . . 2 Recycler 3 | . 1 . 1 1 . . Operator 1 | . . . 1 . . . Watcher 13 | . 2 1 4 4 . 2 Swarmer 23 | . . 7 2 7 . 7 Grunt 34 | 1 9 4 7 11 . 2 Brawler 1 | . . . . 1 . . Duelist 1 | . . . 1 . . . Sentry 15 | . . 2 8 4 . 1 Hunter 6 | . . . 3 1 . 2 Programmer 7 | . . . . 4 . 3 Compactor 2 | . . . . . 2 . Best Kill Streak 8 | 1 4 5 8 6 1 5 Combat Bots Only 5 | 1 3 5 4 4 1 3 Max Kills in Single Turn 2 | 1 2 1 2 2 1 2 Gunslinging . | . . . . . . . Exploded 1 | . . . 1 . . . Melee . | . . . . . . . Uniques/NPCs Destroyed . | . . . . . . . Combat | -11 -10 -9 -8 -7 -7 -7 -------- Run | Yrd Mat Mat Mat Fac Was Fac Hostile Shots Fired 706 | 1 42 58 178 189 14 224 Missed 213 | 1 7 8 41 67 2 87 Damage Taken 6343 | . 430 558 1890 1389 549 1527 Core 952 | . 82 95 69 129 368 209 Absorbed by Shields 135 | . . . . . . 135 Regen/Repaired (Parts) 182 | . . . 43 139 . . Core Remaining (%) 82 | 100 67 76 87 . . . Volleys Fired 301 | 2 29 36 74 73 22 65 Largest 3 | 2 2 2 3 3 3 3 Hottest 175 | 40 70 70 175 163 144 169 Shots Fired 762 | 4 58 68 205 222 51 154 Gun 277 | 4 10 16 126 26 . 95 Cannon 477 | . 48 52 72 196 50 59 Launcher 7 | . . . 7 . . . Special 1 | . . . . . 1 . Kinetic 550 | 4 58 68 107 196 50 67 Thermal 172 | . . . 72 26 . 74 Explosive 7 | . . . 7 . . . Electromagnetic 32 | . . . 19 . . 13 Robot Hit Streak 16 | 1 9 16 12 7 8 13 Robot Miss Streak 6 | 2 5 2 5 6 3 6 Penetration Max 1 | . . . 1 . . 1 Secondary Targets . | . . . . . . . Shots Hit Robots 391 | 1 28 43 110 97 36 76 Core Hits 193 | 1 14 20 65 53 7 33 Critical Kills 1 | . . . . . . 1 Critical Parts Destroyed . | . . . . . . . Critical Strikes 14 | . 1 2 1 5 2 3 Burn 3 | . . . 1 . . 2 Meltdown 1 | . . . . . . 1 Blast 10 | . 1 2 . 5 2 . Melee Attacks . | . . . . . . . Impact . | . . . . . . . Slashing . | . . . . . . . Piercing . | . . . . . . . Sneak Attacks . | . . . . . . . Combat Hostiles . | . . . . . . . Follow-up Attacks . | . . . . . . . Damage Inflicted 9460 | 15 533 731 2735 2772 1168 1506 Guns 2535 | 15 64 202 1307 172 . 775 Cannons 6260 | . 460 529 976 2550 1168 577 Explosions 585 | . . . 442 . . 143 Melee . | . . . . . . . Ramming 80 | . 9 . 10 50 . 11 Kinetic 6646 | 15 524 731 1030 2595 1168 583 Thermal 2002 | . . . 1147 127 . 728 Explosive 283 | . . . 247 . . 36 Electromagnetic 449 | . . . 301 . . 148 Impact . | . . . . . . . Slashing . | . . . . . . . Piercing . | . . . . . . . Highest Corruption 26 | . . 1 . 1 23 26 Average Corruption 15 | . . 1 . 1 14 23 Corruption Purged 5 | . . . . . . 5 Corruption Blocked . | . . . . . . . Effects 145 | . . . . 7 15 123 Message Errors 32 | . . . . 2 3 27 Matter Fused 37 | . . . . 1 4 32 Heat Flow Errors 11 | . . . . . 2 9 Energy Discharges 17 | . . . . . . 17 Parts Rejected 2 | . . . . . . 2 Data Loss (minor) 17 | . . . . 1 2 14 Data Loss (major) 9 | . . . . . 1 8 Misfires 6 | . . . . 3 . 3 Alerts 4 | . . . . . . 4 Misdirections 4 | . . . . . 3 1 Weapon Failures 6 | . . . . . . 6 Overload Shots . | . . . . . . . Overflow Damage 66 | . . . 21 40 5 . Projectiles 45 | . . . . 40 5 . Explosions 21 | . . . 21 . . . Melee . | . . . . . . . Knockbacks 33 | . 8 5 . 18 1 1 Impact 1 | . . . . 1 . . Kinetic 30 | . 7 5 . 16 1 1 Secondary 2 | . 1 . . 1 . . Self-Inflicted Damage 20 | . . . 20 . . . Shots 2 | . . . 2 . . . Rammed 8 | . . . 1 7 . . Targets Rammed 12 | . 1 . 3 7 . 1 Kicked 2 | . 1 . . . . 1 Crushed 2 | . . . 2 . . . Highest Temperature 505 | . 204 171 505 183 206 251 Average Temperature 85 | . 52 50 140 62 60 69 Received Heat Transfer 1620 | . 240 162 711 396 . 111 Effects 6 | . . . 3 . . 3 Shutdowns 1 | . . . 1 . . . Interference 3 | . . . . . . 3 Matter Decay 1 | . . . 1 . . . Damage (minor) 1 | . . . 1 . . . Siege Activations . | . . . . . . . Robots Corrupted . | . . . . . . . Combat Hostiles . | . . . . . . . Parts Fried 1 | . . . 1 . . . Impact Corruptions . | . . . . . . . Robots Melted 1 | . . . . . . 1 Combat Hostiles 1 | . . . . . . 1 Parts Melted 5 | . . . 1 . . 4 Heat Transferred 3416 | . . . 1741 259 . 1416 Parts Sabotaged . | . . . . . . . Parts Stolen . | . . . . . . . Parts Stripped . | . . . . . . . Power Chain Reactions 4 | . . . 2 . . 2 Alert | -11 -10 -9 -8 -7 -7 -7 ------- Run | Yrd Mat Mat Mat Fac Was Fac Peak Influence 671 | 20 195 389 561 671 240 497 Initial 234 | . 13 69 118 233 234 77 Average 276 | 3 104 235 360 323 199 255 Maximum Alert Level 2 | . 1 1 2 2 1 2 Low Security (%) 33 | 100 99 28 20 20 34 36 Level 1 40 | . . 71 27 42 65 47 Level 2 25 | . . . 51 37 . 15 Level 3 . | . . . . . . . Level 4 . | . . . . . . . Level 5 . | . . . . . . . High Security . | . . . . . . . Max Security . | . . . . . . . Squads Dispatched 24 | . 4 1 6 8 . 5 Investigation 8 | . 4 1 2 1 . . Extermination 8 | . . . . 4 . 4 Reinforcement 4 | . . . 1 2 . 1 Assault . | . . . . . . . Garrison 4 | . . . 3 1 . . Intercept . | . . . . . . . Searches Triggered . | . . . . . . . Construction Impeded 2 | . . . 1 1 . . Haulers Reinforced . | . . . . . . . Active Scanning Responses . | . . . . . . . Cargo Convoy Interrupts . | . . . . . . . Stealth | -11 -10 -9 -8 -7 -7 -7 --------- Run | Yrd Mat Mat Mat Fac Was Fac Distress Signals 5 | . 1 . 3 1 . . Communications Jammed . | . . . . . . . Distress Signals . | . . . . . . . Times Spotted 143 | 1 11 17 33 42 4 35 Peak Tracking Total 6 | 1 3 5 6 5 2 5 Tactical Retreats 14 | . 1 2 1 5 . 5 Traps | -11 -10 -9 -8 -7 -7 -7 ------- Run | Yrd Mat Mat Mat Fac Was Fac Traps Triggered 7 | . 2 . . 5 . . Indirectly . | . . . . . . . Trap Hack Attempts . | . . . . . . . Triggered . | . . . . . . . Disarmed . | . . . . . . . Reprogrammed . | . . . . . . . Reused . | . . . . . . . Traps Extracted . | . . . . . . . Installed . | . . . . . . . Triggered . | . . . . . . . Machines | -11 -10 -9 -8 -7 -7 -7 ---------- Run | Yrd Mat Mat Mat Fac Was Fac Machines Disabled 22 | . 4 1 4 2 . 11 Max in Single Turn 6 | . 1 1 2 1 . 6 Machines Repaired . | . . . . . . . Machines Dismantled . | . . . . . . . Machines Sabotaged . | . . . . . . . Overloaded Fab Kills . | . . . . . . . Hacking | -11 -10 -9 -8 -7 -7 -7 --------- Run | Yrd Mat Mat Mat Fac Was Fac Machines Accessed 17 | . 5 3 4 3 . 2 Terminals 11 | . 4 2 2 1 . 2 Fabricators 1 | . . . . 1 . . Repair Stations 3 | . . . 2 1 . . Recycling Units 1 | . 1 . . . . . Scanalyzers 1 | . . 1 . . . . Garrison Access . | . . . . . . . Total Hacks 47 | . 15 7 13 8 . 4 Successful 28 | . 8 3 9 4 . 4 Failed 19 | . 7 4 4 4 . . Catastrophic 4 | . 2 1 . 1 . . Database Lockouts . | . . . . . . . Manual 6 | . 6 . . . . . Terminals 29 | . 14 4 5 2 . 4 Fabricators 4 | . . . . 4 . . Repair Stations 10 | . . . 8 2 . . Recycling Units 1 | . 1 . . . . . Scanalyzers 3 | . . 3 . . . . Garrison Access . | . . . . . . . Terminal Hacks 18 | . 7 1 5 1 . 4 Record 4 | . 1 1 . 1 . 1 Robot Analysis 1 | . . . 1 . . . Prototype ID Bank 2 | . 2 . . . . . Emergency Access Points 1 | . . . . . . 1 Alert Level 2 | . 1 . . . . 1 Locate Traps 1 | . . . . . . 1 Dispatch Records 2 | . 1 . 1 . . . Maintenance Status 2 | . 1 . 1 . . . Recall Investigation 1 | . . . 1 . . . Zone Layout 2 | . 1 . 1 . . . Fabricator Hacks 1 | . . . . 1 . . Load Schematic 1 | . . . . 1 . . Repair Station Hacks 6 | . . . 4 2 . . Scan Component 4 | . . . 3 1 . . Repair 2 | . . . 1 1 . . Recycling Unit Hacks 1 | . 1 . . . . . Report Inventory 1 | . 1 . . . . . Scanalyzer 2 | . . 2 . . . . Insert Component 1 | . . 1 . . . . Analyze 1 | . . 1 . . . . Garrison Access Hacks . | . . . . . . . Unauthorized Hacks . | . . . . . . . Terminals . | . . . . . . . Fabricators . | . . . . . . . Repair Stations . | . . . . . . . Recycling Units . | . . . . . . . Scanalyzers . | . . . . . . . Garrison Access . | . . . . . . . Data Cores Recovered 1 | . . . 1 . . . Used . | . . . . . . . Hacking Detections 14 | . 5 1 3 3 . 2 Full Trace Events 8 | . 3 1 3 1 . . Feedback Events 1 | . . 1 . . . . Corruption 1 | . . 1 . . . . Feedback Blocked . | . . . . . . . Robot Schematics Acquired . | . . . . . . . Robots Built . | . . . . . . . Authchips . | . . . . . . . Time . | . . . . . . . Total Robot Build Rating . | . . . . . . . Part Schematics Acquired 1 | . . 1 . . . . Parts Built . | . . . . . . . Authchips . | . . . . . . . Time . | . . . . . . . Total Part Build Rating . | . . . . . . . Parts Repaired 2 | . . . 1 1 . . Time 64 | . . . 26 38 . . Parts Recycled . | . . . . . . . Recycled Matter . | . . . . . . . Retrieved Matter . | . . . . . . . Retrieved Components . | . . . . . . . Parts Scanalyzed 1 | . . 1 . . . . Part Schematics Acquired 1 | . . 1 . . . . Parts Damaged . | . . . . . . . Bothacking | -11 -10 -9 -8 -7 -7 -7 ------------ Run | Yrd Mat Mat Mat Fac Was Fac Used RIF Installer . | . . . . . . . Robots Hacked 1 | . . . . . 1 . Non-combat . | . . . . . . . Combat 1 | . . . . . 1 . Robot Hacks Applied 1 | . . . . . 1 . parse_system 1 | . . . . . 1 . Relay Couplers Released . | . . . . . . . Fabnet Peak Effective % . | . . . . . . . Robots Rewired . | . . . . . . . Allies Hacked . | . . . . . . . Hacks Repelled . | . . . . . . . Allies | -11 -10 -9 -8 -7 -7 -7 -------- Run | Yrd Mat Mat Mat Fac Was Fac Total Allies 1 | . . . . . 1 . Largest Group 1 | . . . . . 1 . Highest-Rated Group 31 | . . . . . 31 . Highest-Rated Ally 31 | . . . . . 31 . Total Orders . | . . . . . . . Ally Attacks 27 | . . . . . 27 . Total Damage 414 | . . . . . 414 . Kills . | . . . . . . . Allies Corrupted . | . . . . . . . Allies Melted . | . . . . . . . Intel | -11 -10 -9 -8 -7 -7 -7 ------- Run | Yrd Mat Mat Mat Fac Was Fac Robot Analysis Total 1 | . . . 1 . . . Derelict Logs Recovered . | . . . . . . . Drone Launches . | . . . . . . . Drone Recoveries . | . . . . . . . Exploration | -11 -10 -9 -8 -7 -7 -7 ------------- Run | Yrd Mat Mat Mat Fac Was Fac Turns Passed 7914 | 77 632 754 1592 2074 266 2519 Spaces Moved 2991 | 60 291 289 475 695 158 1023 Core 244 | 17 . . . . 106 121 Treads 2030 | . . 289 475 695 52 519 Legs 568 | 43 291 . . . . 234 Wheels . | . . . . . . . Hover 85 | . . . . . . 85 Flight 64 | . . . . . . 64 Fastest Speed 50 | 50 120 160 250 237 50 112 Average Speed 215 | 100 173 204 250 241 110 218 Slowest Speed 432 | 120 190 250 250 250 237 432 Overloaded Moves . | . . . . . . . Propulsion Burnouts . | . . . . . . . Robots Hopped . | . . . . . . . Cave-ins Triggered . | . . . . . . . Exploration Rate (%) 35 | 5 43 24 49 17 84 23 Regions Visited 6 Branch Regions . Pre-discovered Areas . | . . . . . . . Known Exits Taken . | . . . . . . . Unknown Exits Taken 4 | 1 1 1 1 . . . Scrap Searched . | . . . . . . . Spaces Dug . | . . . . . . . Terrain Destroyed 166 | . . . 77 33 6 50 Melee . | . . . . . . . Projectile 72 | . . . 31 33 6 2 AOE 94 | . . . 46 . . 48 Terrain Rammed . | . . . . . . . Walls Destroyed . | . . . . . . . Machines Disabled . | . . . . . . . Actions | -11 -10 -9 -8 -7 -7 -7 --------- Run | Yrd Mat Mat Mat Fac Was Fac Total 3840 | 73 361 387 714 920 207 1178 Wait 219 | . 5 26 87 85 7 9 Move 2986 | 59 290 288 474 695 157 1023 Hop . | . . . . . . . Pick Up 109 | 7 19 8 21 19 7 28 Fast Attach 17 | . 1 2 4 4 . 6 Attach 50 | 5 4 1 7 4 9 20 Detach 6 | . 1 . 1 . . 4 Swap 64 | . 5 13 24 8 3 11 Drop 69 | . 6 13 19 19 2 10 Fire 301 | 2 29 36 74 73 22 65 Melee . | . . . . . . . Ram 1 | . . . . . . 1 Kick 2 | . 1 . . . . 1 Crush 10 | . . . 3 7 . . Escape Stasis 6 | . . . . 6 . . Rewire . | . . . . . . . Trap . | . . . . . . . Miscellaneous . | . . . . . . . Route ------- -11/Scrapyard -10/Materials (discovered 2 exits: *Mat / [*Min]) -9/Materials -8/Materials -7/Factory -7/Waste -7/Factory History --------- Turn | Location | Event 2 | -11/Scrapyard | Met Revision 17 56 | -11/Scrapyard | Discovered new exit (range 8) 78 | -11/Scrapyard | Entered Materials 140 | -10/Materials | Discovered new exit (range 10) 326 | -10/Materials | Build established: Mutant 662 | -10/Materials | Discovered new exit (range 9) 710 | -10/Materials | Entered another Materials area 710 | -9/Materials | Evolved 2 slots: Utility x2 1282 | -9/Materials | Discovered new exit (range 3) 1464 | -9/Materials | Entered another Materials area 1464 | -8/Materials | Evolved 2 slots: Utility x1, Weapon x1 1508 | -8/Materials | Repaired Lgt. Cannon 2170 | -8/Materials | Garrison activated, responded to threat 2250 | -8/Materials | Build established: Scavenger-Tank 2840 | -8/Materials | Build established: Tank 2976 | -8/Materials | Discovered new exit (range 16) 3056 | -8/Materials | Entered Factory 3056 | -7/Factory | Evolved 2 slots: Utility x2 3439 | -7/Factory | Garrison activated, responded to threat 4505 | -7/Factory | Repaired Hrd. Medium Armor Plating 4633 | -7/Factory | Discovered new exit (range 16) 5130 | -7/Factory | Sucked down chute 5130 | -7/Factory | Entered Waste 5131 | -7/Waste | Met a frightened Derelict 5145 | -7/Waste | EMP discharged 5145 | -7/Waste | System corruption reached 10% 5153 | -7/Waste | Spotted C-40 Crusher 5172 | -7/Waste | Destroyed C-40 Crusher 5211 | -7/Waste | Spotted C-40 Crusher 5221 | -7/Waste | Destroyed C-40 Crusher 5245 | -7/Waste | EMP discharged 5257 | -7/Waste | Spotted C-40 Crusher 5280 | -7/Waste | Crushed by Compactor (1 part destroyed, 1 dropped) 5290 | -7/Waste | Crushed by Compactor (1 part destroyed, 1 dropped) 5298 | -7/Waste | Crushed by Compactor (1 part destroyed, 2 dropped) 5301 | -7/Waste | Crushed by Compactor (1 part destroyed, 2 dropped) 5304 | -7/Waste | Crushed by Compactor (1 part destroyed, 2 dropped) 5319 | -7/Waste | Crushed by Compactor (1 part destroyed, 1 dropped) 5322 | -7/Waste | Crushed by Compactor (1 part destroyed, 2 dropped) 5325 | -7/Waste | Crushed by Compactor (1 part destroyed) 5328 | -7/Waste | Crushed by Compactor (1 part destroyed) 5329 | -7/Waste | Core integrity fell below 50% 5334 | -7/Waste | Crushed by Compactor (1 part destroyed) 5345 | -7/Waste | EMP discharged 5345 | -7/Waste | Crushed by Compactor (1 part destroyed) 5358 | -7/Waste | Spotted C-40 Crusher 5369 | -7/Waste | Spotted C-40 Crusher 5375 | -7/Waste | Spotted C-40 Crusher 5376 | -7/Waste | Lost 11 parts (1p3n3u4w) 5390 | -7/Waste | Discovered new exit (range 11) 5396 | -7/Waste | Entered Factory 5570 | -7/Factory | Build established: Mutant 6078 | -7/Factory | Core integrity fell below 20% 6581 | -7/Factory | Build established: Scavenger-Tank 7361 | -7/Factory | Build established: Scavenger-Mutant 7915 | -7/Factory | Destroyed by P-60 Hacker with Shock Rifle Last Messages --------------- 07811_ System corrupted: Energy discharge (-224). 07827_ T |47YZ2B 5RLS S>XGL 07839_ System corrupted: Gauss Rifle jammed. 07839_ Chain reaction triggered in Lgt. Nuclear Core. 07842_ G-47 Trooper destroyed. 07860_ D>XIQPND 95LT :,LSRVX FW17|L 07862_ K-01 Serf collects debris. 07886_ Connecting with Terminal... >>Query(Factory) Mid-levels of [Complex 0b10] contain a majority of the fabrication facilities for manufacturing components and assembling robots. >>Alert(Check) Current Alert Level: 1-U 07893_ Acquired Hrd. Medium Armor Plating. 07896_ System corrupted: Matter fused (-6). 07896_ ALERT: Rogue bot located, Programmers report to Factory Zone 7K. 07909_ Terminal disabled. 07909_ Slug penetrates Wall. 07913_ System corrupted: Plasma Cannon failed to cycle. 07913_ Slug penetrates Wall. Map ----- +----------------------------------------------------+ | #???# #?????????????????????????# | | #####???##############?????????????????????????# | | ???????????????????????????????????????????????# | | ???????????????????????????????????????????????# | | ???????????????????????????????????????????????# | | ???????????????????????????????????????????????# | | ???????????????????????????????????????????????# | | ???????????????????????????????????????????????# | | ???????????????????????????????????????????????# | | ???????????????????????????????????????????????# | | ???????????????????##############+########+##### | | ???????????????????# | | ???????????????????# | | ???????????????????# | | ???????????????????+ % | | ???????????????????# | | ???????????????????# | | ???????????????????# | | ???????????????????#####u#+##############+##### | | ???????????????????# p ## # | | ???????????????????# "" """"" ## # | | ???????????????????#= "" "T"" ## ! # | | ???????????????????# """ ## # | | ?????????????????? + """ ##! """ """ # | | ?????????????????### """ ## """ """ + | | ???????????????????# @ ## """ """ # | | ???????????????????############### # | | ?????????????????????????????????# """ """ # | | ?????????????????????????????????# """ """ # | | ?????????????????????????????????# = """ """ # | | ?????????????????????????????????# # | | ?????????????????????????????????############## | | ??????????????????????????????????????????????# | | ??????????????????????????????????????????????# | | ??????????????????????????????????????????????# | | ??????????????????????????????????????????????# | | ??????????????????????????????????????????????# | | ??????????????????????????????????????????????# | | ??????????????????????????????????????????????# | | ??????????????????????????????????????????????? | | ?????????????????????????????????????????????????? | | ?????????????????????????????????????????????????? | | ?????????????????????????????????????????????????? | | ?????????????????????????????????????????????????? | | ?????????????????????????????????????????????????? | | ?????????????????????????????????????????????????? | | ?????????????????????????????????????????????????? | | ?????????????????????????????????????????????????? | | ?????????????????????????????????????????????????? | | ?????????????????????????????????????????????????? | +----------------------------------------------------+ Best States ------------- Heat Dissipation 78 Energy Generation 16 Energy Capacity 560 Matter Stores 300 Matter Capacity 500 Sight Range 16 Terrain Scan Density 10 ECM Strength 2 Armor Coverage 675 Evasion (%) 55 Core Analysis 6 Recoil Reduction 2 Kinecelleration 40 Offensive Hacking 10 Item Schematics ----------------- Hrd. Medium Armor Plating | -9/Materials | Scanalyzed Robot Schematics ------------------ None Fabricated ------------ Nothing Alien Tech Used ----------------- None Achievements -------------- GoHome() Hey, That's Mine! Part-time Mechanic Party Time Please Form A Line Serviceable Loadout Challenges ------------ None Game ------ Seed AnalysisComponentBlade Manual? 0 Play Time 02:32:29 Cumulative 6.9 hours Start 2024.05.02 @ 22:14:09 End 2024.05.03 @ 01:41:04 Sessions 1 Manual Loads 0 Difficulty Rogue Special Mode None Game No. 3 Rogue 3 Adventurer 0 Explorer 0 Win Type - Total 0 Types 0/0/0/0/0/0/0/0/0 Lore% 2 Gallery% 8 Achievement% 8 Wizard Run 0 Options --------- Layout 0 ASCII 0 Keyboard 0 Movement Mouse Keybinds 0 Fullscreen 1 Font 18/SmallcapsGlow Map View 38x25 Zoom Use 99% Tactical HUD 1 Map Filters NONE Filters NONE Steam 0 RUN: cadd8d17-d3ed-4870-a547-6b591e235469